bitfinex/quotes_SOLUSD_20241111
["timestamp","ask_amount","ask_price","bid_price","bid_amount"]
[1731339942762,39.2070375,219.01,218.93,39.2070375]
[1731339942945,39.2070375,219.03,218.93,39.2070375]
[1731339943346,4.1077,219.1,218.96,39.2070375]
[1731339943554,4.1077,219.1,219.0,39.2070375]
[1731339943961,39.2070375,219.08,219.0,39.2070375]
[1731339944142,39.2070375,219.04,218.97,6.0411]
[1731339944664,39.2070375,219.02,218.92,50.6266375]
[1731339944868,39.2070375,218.99,218.92,11.4196]
[1731339945045,39.2070375,218.99,218.92,15.9874]
[1731339945655,39.2070375,218.93,218.86,21.6634]
[1731339945960,39.2070375,218.97,218.87,39.2070375]
[1731339946141,39.2070375,218.95,218.87,39.2070375]
[1731339946342,39.2070375,218.93,218.86,37.6552]
[1731339946558,39.2070375,218.91,218.86,21.6634]
[1731339946765,39.2070375,218.93,218.86,21.6634]
[1731339946965,39.2070375,219.01,218.91,39.2070375]
[1731339947175,39.2070375,219.03,218.93,39.2070375]
[1731339947463,4.1082,219.07,218.93,39.2070375]
[1731339947464,39.2070375,219.01,218.93,39.2070375]
[1731339947671,39.2070375,219.05,218.97,39.2070375]
[1731339947868,4.1082,219.07,218.88,39.2070375]
[1731339947869,39.2070375,219.07,218.98,39.2070375]
[1731339948159,39.2070375,219.05,218.96,39.2070375]
[1731339948365,39.2070375,219.07,218.98,39.2070375]
[1731339948565,39.2070375,219.11,219.02,39.2070375]
[1731339948744,39.2070375,219.11,219.03,15.9794]
[1731339948948,39.2070375,219.13,219.06,39.2070375]
[1731339949145,39.2070375,219.15,219.06,39.2070375]
[1731339949474,39.2070375,219.15,219.08,39.2070375]
[1731339949651,39.2070375,219.15,219.06,39.2070375]
[1731339950352,39.2070375,219.15,219.07,15.9765]
[1731339950580,39.2070375,219.17,219.08,39.2070375]
[1731339950747,39.2070375,219.15,219.07,15.9765]
[1731339952488,39.2070375,219.17,219.08,39.2070375]
[1731339952779,39.2070375,219.21,219.12,39.2070375]
[1731339953070,10.2597,219.31,219.07,38.8002]
[1731339953071,43.3119375,219.25,219.16,39.2070375]
[1731339953371,39.2070375,219.19,219.1,39.2070375]
[1731339954076,39.2070375,219.21,219.12,39.2070375]
[1731339954265,39.2070375,219.17,219.11,11.4097]
[1731339954863,39.2070375,219.17,219.11,15.9736]
[1731339955070,39.2070375,219.15,219.11,11.4097]
[1731339955273,39.2070375,219.15,219.09,4.5641]
[1731339955571,39.2070375,219.15,219.06,11.4121]
[1731339955572,39.2070375,219.13,219.06,15.9768]
[1731339955773,39.2070375,219.15,219.06,15.9768]
[1731339955964,4.1056,219.21,219.06,15.9768]
[1731339956165,39.2070375,219.15,219.07,39.2070375]
[1731339956365,39.2070375,219.17,219.07,39.2070375]
[1731339956671,39.2070375,219.15,219.07,39.2070375]
[1731339957569,43.3138375,219.15,219.08,4.5645]
[1731339958364,39.2070375,219.13,219.06,15.9769]
[1731339958664,39.2070375,219.13,219.06,11.4121]
[1731339958858,39.2070375,219.11,219.06,11.4121]
[1731339959053,39.2070375,219.11,218.98,4.597758]
[1731339959054,0.1,219.04,218.98,4.597758]
[1731339959278,0.1,218.88,218.71,39.2070375]
[1731339959482,39.2070375,218.79,218.69,43.88549444]
[1731339959654,39.2070375,218.77,218.64,16.7662]
[1731339959854,39.2070375,218.8,218.65,0.10228448]
[1731339960173,20.0,218.87,218.64,16.6662]
[1731339960558,20.1,218.87,218.7,11.4311]
[1731339960776,20.0,218.87,218.7,11.4311]
[1731339960980,39.2070375,218.76,218.7,11.4311]
[1731339961475,39.2070375,218.8,218.72,39.2070375]
[1731339961679,39.2070375,218.86,218.76,39.2070375]
[1731339961856,39.2070375,218.88,218.78,39.2070375]
[1731339962058,39.2070375,218.9,218.8,39.2070375]
[1731339962263,39.2070375,218.9,218.8,45.5503375]
[1731339962466,39.2070375,218.92,218.82,39.2070375]
[1731339962660,39.2070375,218.94,218.84,39.2070375]
[1731339963074,39.2070375,218.88,218.83,15.1217]
[1731339963463,39.2070375,218.86,218.83,15.1217]
[1731339963772,39.2070375,218.9,218.83,19.6913]
[1731339964080,39.2070375,218.92,218.84,39.2070375]
[1731339965874,39.2070375,218.92,218.85,15.9926]
[1731339966975,39.2070375,218.96,218.86,39.2070375]
[1731339967176,39.2070375,218.98,218.9,39.2070375]
[1731339967379,39.2070375,219.04,218.94,39.2070375]
[1731339967563,39.2070375,219.02,218.92,39.2070375]
[1731339967761,39.2070375,219.0,218.92,39.2070375]
[1731339967959,39.2070375,218.95,218.86,39.2070375]
[1731339968174,39.2070375,218.97,218.88,39.2070375]
[1731339968682,39.2070375,218.91,218.85,15.9926]
[1731339968985,39.2070375,218.89,218.85,11.4233]
[1731339969177,39.2070375,218.95,218.86,39.2070375]
[1731339969766,39.2070375,218.95,218.85,11.4233]
[1731339969767,39.2070375,218.95,218.88,39.2070375]
[1731339969965,78.414075,218.89,218.8,6.3433]
[1731339970264,39.2070375,218.81,218.74,16.2942]
[1731339970471,39.2070375,218.77,218.74,16.2942]
[1731339971063,39.2070375,218.77,218.74,20.8656]
[1731339971580,39.2070375,218.79,218.74,20.8656]
[1731339972770,39.2070375,218.77,218.74,16.2942]
[1731339973075,39.2070375,218.81,218.74,27.7232]
[1731339973280,39.2070375,218.75,218.72,6.4821]
[1731339973589,39.2070375,218.73,218.67,4.573]
[1731339973764,39.2070375,218.69,218.66,15.4346]
[1731339973959,39.2070375,218.67,218.58,16.012]
[1731339974178,39.2070375,218.61,218.57,21.8415]
[1731339974579,39.2070375,218.59,218.49,26.2724]
[1731339974788,39.2070375,218.57,218.49,26.2724]
[1731339974976,0.1,218.63,218.54,4.5758]
[1731339974977,39.2070375,218.63,218.54,4.5758]
[1731339975169,39.2070375,218.67,218.59,39.2070375]
[1731339975581,39.2070375,218.69,218.61,39.2070375]
[1731339976584,39.2070375,218.67,218.6,39.2070375]
[1731339976794,39.2070375,218.65,218.56,39.2070375]
[1731339976962,39.2070375,218.67,218.59,4.5747]
[1731339977168,39.2070375,218.73,218.64,39.2070375]
[1731339977384,39.2070375,218.69,218.62,39.2070375]
[1731339977696,39.2070375,218.63,218.56,4.5752]
[1731339977869,39.2070375,218.61,218.55,4.5754]
[1731339978069,39.2070375,218.58,218.52,11.4403]
[1731339978270,39.2070375,218.56,218.49,26.2724]
[1731339978464,39.2070375,218.6,218.5,39.2070375]
[1731339978688,39.2070375,218.6,218.52,39.2070375]
[1731339978878,39.2070375,218.62,218.52,39.2070375]
[1731339979287,39.2070375,218.6,218.53,16.016]
[1731339979582,39.2070375,218.76,218.49,21.6956]
[1731339979583,39.2070375,218.58,218.5,39.2070375]
[1731339979787,39.2070375,218.54,218.49,15.1426]
[1731339980091,39.2070375,218.52,218.49,15.1426]
[1731339980767,39.2070375,218.54,218.49,15.1426]
[1731339980969,39.2070375,218.52,218.49,15.1426]
[1731339981170,39.2070375,218.52,218.43,39.2070375]
[1731339981375,20.0,218.63,218.51,39.2070375]
[1731339981582,20.0,218.59,218.51,39.2070375]
[1731339981785,20.0,218.59,218.44,16.0225]
[1731339981786,20.0,218.55,218.47,39.2070375]
[1731339982477,39.2070375,218.54,218.47,39.2070375]
[1731339982786,39.2070375,218.6,218.53,39.2070375]
[1731339983088,39.2070375,218.66,218.57,39.2070375]
[1731339983299,39.2070375,218.7,218.63,39.2070375]
[1731339983477,39.2070375,218.7,218.61,39.2070375]
[1731339983789,39.2070375,218.68,218.59,39.2070375]
[1731339983995,39.2070375,218.65,218.58,16.0123]
[1731339984173,39.2070375,218.65,218.58,11.4374]
[1731339984992,39.2070375,218.63,218.57,15.8685]
[1731339985292,39.2070375,218.63,218.57,20.4434]
[1731339985475,39.2070375,218.65,218.58,39.2070375]
[1731339985676,39.2070375,218.67,218.6,39.2070375]
[1731339985872,39.2070375,218.67,218.58,39.2070375]
[1731339986088,39.2070375,218.65,218.58,39.2070375]
[1731339986292,39.2070375,218.63,218.57,27.3064]
[1731339986595,39.2070375,218.59,218.5,39.2070375]
[1731339986780,39.2070375,218.57,218.5,39.2070375]
[1731339987181,39.2070375,218.55,218.48,39.2070375]
[1731339987483,20.0,218.56,218.5,39.2070375]
[1731339987878,20.0,218.58,218.5,39.2070375]
[1731339989084,20.0,218.6,218.52,39.2070375]
[1731339989276,20.0,218.6,218.54,39.2070375]
[1731339989477,39.2070375,218.65,218.56,39.2070375]
[1731339989680,39.2070375,218.63,218.56,39.2070375]
[1731339990091,39.2070375,218.67,218.58,39.2070375]
[1731339990290,39.2070375,218.67,218.6,39.2070375]
[1731339990604,39.2070375,218.69,218.6,39.2070375]
[1731339990782,39.2070375,218.68,218.53,38.8961]
[1731339990986,39.2070375,218.66,218.59,39.2070375]
[1731339991379,39.2070375,218.62,218.55,39.2070375]
[1731339991587,39.2070375,218.6,218.53,39.2070375]
[1731339991786,4.67119803,218.75,218.49,39.2070375]
[1731339991787,20.0,218.57,218.49,39.2070375]
[1731339991987,39.2070375,218.56,218.49,39.2070375]
[1731339992188,39.2070375,218.58,218.48,16.0196]
[1731339992396,20.0,218.57,218.49,39.2070375]
[1731339992696,39.2070375,218.56,218.49,39.2070375]
[1731339992876,20.0,218.55,218.48,16.0195]
[1731339993487,39.2070375,218.54,218.48,16.0195]
[1731339993778,20.0,218.49,218.42,16.0238]
[1731339993978,20.0,218.49,218.38,15.9778]
[1731339994305,20.0,218.41,218.37,11.4483]
[1731339994595,20.0,218.41,218.37,16.0276]
[1731339994781,39.2070375,218.44,218.37,16.0276]
[1731339994984,39.2070375,218.52,218.43,39.2070375]
[1731339995205,20.0,218.51,218.45,39.2070375]
[1731339995376,43.5121386,218.64,218.37,16.0276]
[1731339995377,18.305817,218.66,218.5,39.2070375]
[1731339995578,39.2070375,218.61,218.53,39.2070375]
[1731339995910,39.2070375,218.57,218.47,16.4992]
[1731339996202,39.2070375,218.55,218.48,23.776884]
[1731339996782,39.2070375,218.55,218.44,6.2005]
[1731339996783,20.0,218.52,218.45,4.5776]
[1731339996983,20.0,218.52,218.47,39.2070375]
[1731339997184,39.2070375,218.64,218.45,11.4442]
[1731339997185,20.0,218.49,218.45,11.4442]
[1731339997379,20.0,218.49,218.45,16.0219]
[1731339997580,20.0,218.49,218.45,11.4442]
[1731339997798,20.0,218.49,218.43,39.2070375]
[1731339997799,20.0,218.49,218.43,43.7850375]
[1731339998214,20.0,218.49,218.43,4.578]
[1731339998502,20.0,218.49,218.41,39.2070375]
[1731339998879,39.2070375,218.48,218.42,16.0241]
[1731339999101,20.0,218.45,218.37,45.4075375]
[1731339999301,39.2070375,218.38,218.3,1.57537427]
[1731339999481,39.2070375,218.36,218.3,4.5807]
[1731340000174,0.2,218.42,218.24,21.7595]
[1731340000504,20.0,218.39,218.31,39.2070375]
[1731340000803,39.2070375,218.42,218.35,39.2070375]
[1731340000988,20.0,218.41,218.35,27.73060614]
[1731340001194,0.1,218.47,218.29,16.0336]
[1731340001195,39.2070375,218.47,218.39,39.2070375]
[1731340001389,39.2070375,218.51,218.42,39.2070375]
[1731340001705,14.08071848,218.5,218.42,39.2070375]
[1731340001882,39.2070375,218.51,218.42,39.2070375]
[1731340002087,39.2070375,218.52,218.44,39.2070375]
[1731340002308,39.2070375,218.5,218.4,39.2070375]
[1731340002685,20.0,218.49,218.42,39.2070375]
[1731340003004,20.0,218.49,218.41,16.0246]
[1731340003181,20.0,218.49,218.4,39.2070375]
[1731340003182,20.0,218.47,218.4,39.2070375]
[1731340003379,39.2070375,218.44,218.37,4.5792]
[1731340003584,39.2070375,218.44,218.36,39.2070375]
[1731340004003,20.0,218.43,218.36,39.2070375]
[1731340004179,39.2070375,218.4,218.3,39.2070375]
[1731340004583,39.2070375,218.4,218.26,61.8526]
[1731340004584,20.0,218.39,218.32,39.2070375]
[1731340004911,20.0,218.39,218.3,39.2070375]
[1731340005213,20.0,218.39,218.31,4.5806]
[1731340005392,0.1,218.45,218.31,4.5806]
[1731340005393,20.0,218.37,218.31,4.5806]
[1731340005587,20.0,218.37,218.31,16.0322]
[1731340006507,20.0,218.37,218.31,11.4516]
[1731340006690,20.0,218.37,218.31,16.0322]
[1731340006886,39.2070375,218.4,218.32,39.2070375]
[1731340007090,39.2070375,218.44,218.36,39.2070375]
[1731340008091,39.2070375,218.37,218.29,39.2070375]
[1731340008295,20.0,218.38,218.31,39.2070375]
[1731340008507,20.0,218.38,218.28,11.4529]
[1731340008508,20.0,218.38,218.33,39.2070375]
[1731340008692,39.2070375,218.37,218.29,39.2070375]
[1731340008886,39.2070375,218.37,218.28,11.4529]
[1731340008887,39.2070375,218.4,218.32,39.2070375]
[1731340009087,39.2070375,218.44,218.36,39.2070375]
[1731340009700,39.2070375,218.42,218.34,39.2070375]
[1731340010391,39.2070375,218.4,218.32,39.2070375]
[1731340010809,39.2070375,218.44,218.36,39.2070375]
[1731340011006,39.2070375,218.46,218.38,39.2070375]
[1731340011315,39.2070375,218.44,218.37,4.5793]
[1731340011604,39.2070375,218.42,218.34,39.2070375]
[1731340011787,39.2070375,218.44,218.36,39.2070375]
[1731340011983,39.2070375,218.42,218.34,43.7869375]
[1731340012219,39.2070375,218.42,218.32,39.2070375]
[1731340012389,39.2070375,218.4,218.32,39.2070375]
[1731340012705,39.2070375,218.52,218.32,39.2070375]
[1731340012706,2.7044,218.57,218.38,39.2070375]
[1731340013014,39.2070375,218.54,218.45,39.2070375]
[1731340013184,39.2070375,218.54,218.46,4.5774]
[1731340013385,18.31124,218.66,218.46,4.5774]
[1731340013689,39.2070375,218.73,218.65,39.2070375]
[1731340014008,39.2070375,218.78,218.7,39.2070375]
[1731340014198,39.2070375,218.8,218.72,39.2070375]
[1731340014398,39.2070375,218.82,218.74,39.2070375]
[1731340014594,39.2070375,218.82,218.72,39.2070375]
[1731340014811,39.2070375,218.8,218.7,39.2070375]
[1731340014986,39.2070375,218.78,218.68,39.2070375]
[1731340015310,39.2070375,218.78,218.68,43.7797375]
[1731340015514,39.2070375,218.8,218.72,39.2070375]
[1731340015806,39.2070375,218.84,218.74,39.2070375]
[1731340016713,39.2070375,218.87,218.76,39.2070375]
[1731340016923,39.2070375,218.87,218.78,39.2070375]
[1731340017091,39.2070375,218.85,218.69,20.1]
[1731340017414,39.2070375,218.85,218.76,39.2070375]
[1731340017590,4.5678,218.92,218.75,11.4283]
[1731340017591,39.2070375,218.83,218.75,11.4283]
[1731340017794,39.2070375,218.81,218.7,43.7794375]
[1731340018109,39.2070375,218.81,218.7,55.2105375]
[1731340019185,39.2070375,218.88,217.62,103.79604202]
[1731340019186,39.2070375,218.72,218.57,16.013]
[1731340019392,39.2070375,218.7,218.62,39.2070375]
[1731340019803,39.2070375,218.72,218.62,39.2070375]
[1731340020012,4.67546546,218.8,218.57,16.013]
[1731340020013,39.2070375,218.68,218.57,16.013]
[1731340020493,39.2070375,218.66,218.58,39.2070375]
[1731340020809,39.2070375,218.68,218.58,39.2070375]
[1731340021001,39.2070375,218.66,218.58,39.2070375]
[1731340021396,39.2070375,218.7,218.62,39.2070375]
[1731340021604,39.2070375,218.76,218.62,39.2070375]
[1731340021605,39.2070375,218.72,218.62,39.2070375]
[1731340021797,39.2070375,218.72,218.64,39.2070375]
[1731340022103,39.2070375,218.72,218.62,39.2070375]
[1731340022414,39.2070375,218.82,218.71,39.2070375]
[1731340022592,39.2070375,218.82,218.73,39.2070375]
[1731340022926,39.2070375,218.8,218.71,39.2070375]
[1731340023104,43.7775375,218.8,218.71,39.2070375]
[1731340023292,43.7775375,218.8,218.71,43.7792375]
[1731340023688,39.2070375,218.72,218.61,50.6427375]
[1731340024000,39.2070375,218.71,218.61,55.2170375]
[1731340024318,4.67525174,218.79,218.65,39.2070375]
[1731340024319,39.2070375,218.75,218.65,39.2070375]
[1731340024522,39.2070375,218.75,218.67,39.2070375]
[1731340024698,39.2070375,218.69,218.61,39.2070375]
[1731340024891,39.2070375,218.67,218.57,39.2070375]
[1731340025219,39.2070375,218.65,218.57,55.2200375]
[1731340025394,39.2070375,218.63,218.57,11.4379]
[1731340025712,39.2070375,218.63,218.55,15.4306]
[1731340026091,39.2070375,218.59,218.51,50.6476375]
[1731340026296,39.2070375,218.59,218.49,39.2070375]
[1731340026495,39.2070375,218.59,218.51,39.2070375]
[1731340027224,43.7819375,218.59,218.51,39.2070375]
[1731340027712,39.2070375,218.55,218.46,4.5773]
[1731340027892,39.2070375,218.51,218.41,11.2176]
[1731340028088,39.2070375,218.48,218.41,11.4463]
[1731340028291,16.0118,218.59,218.35,15.9841]
[1731340028292,39.2070375,218.42,218.35,15.9841]
[1731340028502,39.3070375,218.52,218.36,4.5795]
[1731340028715,39.2070375,218.47,218.39,39.2070375]
[1731340029024,39.2070375,218.47,218.37,39.2070375]
[1731340029201,4.5774,218.46,218.37,39.2070375]
[1731340029406,39.2070375,218.45,218.37,39.2070375]
[1731340029605,39.2070375,218.43,218.36,11.4489]
[1731340029818,39.2070375,218.47,218.39,39.2070375]
[1731340030131,39.2070375,218.51,218.41,39.2070375]
[1731340030722,39.2070375,218.53,218.45,39.2070375]
[1731340031022,4.5757,218.55,218.42,39.2070375]
[1731340031023,39.2070375,218.51,218.42,39.2070375]
[1731340031225,39.2070375,218.49,218.38,39.2070375]
[1731340031418,39.2070375,218.47,218.38,39.2070375]
[1731340031800,39.2070375,218.49,218.4,39.2070375]
[1731340032723,39.2070375,218.45,218.37,11.4484]
[1731340032902,39.2070375,218.43,218.35,15.9841]
[1731340033097,0.1,218.48,218.32,4.5803]
[1731340033098,39.2070375,218.39,218.32,4.5803]
[1731340033402,39.2070375,218.34,218.26,4.5816]
[1731340033605,39.2070375,218.38,218.3,39.2070375]
[1731340033915,39.2070375,218.4,218.32,39.2070375]
[1731340034127,39.2070375,218.4,218.3,39.2070375]
[1731340034521,39.2070375,218.4,218.32,39.2070375]
[1731340034905,39.2070375,218.4,218.3,39.2070375]
[1731340035297,39.2070375,218.34,218.26,50.6612375]
[1731340035502,39.2070375,218.38,218.28,39.2070375]
[1731340035702,39.2070375,218.38,218.3,39.2070375]
[1731340035900,39.2070375,218.4,218.32,39.2070375]
[1731340036111,39.2070375,218.4,218.3,39.2070375]
[1731340036312,39.2070375,218.4,218.32,39.2070375]
[1731340036726,39.2070375,218.4,218.3,39.2070375]
[1731340037027,39.2070375,218.36,218.28,39.2070375]
[1731340037203,39.2070375,218.32,218.24,54.6439375]
[1731340037403,39.2070375,218.32,218.24,15.4369]
[1731340038025,39.2070375,218.32,218.24,54.6439375]
[1731340038211,39.2070375,218.34,218.26,39.2070375]
[1731340038418,39.2070375,218.34,218.24,55.2442375]
[1731340038615,4.5779,218.44,218.32,39.2070375]
[1731340038801,39.2070375,218.4,218.32,39.2070375]
[1731340039005,39.2070375,218.38,218.3,39.2070375]
[1731340039525,43.7862375,218.38,218.3,39.2070375]
[1731340040027,39.2070375,218.36,218.28,39.2070375]
[1731340040211,39.2070375,218.34,218.26,39.2070375]
[1731340040835,39.2070375,218.38,218.28,39.2070375]
[1731340041032,39.2070375,218.38,218.3,39.2070375]
[1731340041623,39.2070375,218.4,218.31,4.5806]
[1731340041825,39.2070375,218.42,218.34,39.2070375]
[1731340042122,39.2070375,218.4,218.32,39.2070375]
[1731340043435,39.2070375,218.38,218.3,39.2070375]
[1731340043728,39.2070375,218.36,218.28,43.7881375]
[1731340044103,39.2070375,218.38,218.28,43.7881375]
[1731340044323,43.7859375,218.4,218.32,39.2070375]
[1731340044514,43.7859375,218.4,218.28,4.5811]
[1731340044515,39.2070375,218.42,218.34,39.2070375]
[1731340044720,39.2070375,218.44,218.36,39.2070375]
[1731340044928,43.7844375,218.46,218.36,39.2070375]
[1731340045117,39.2070375,218.48,218.39,39.2070375]
[1731340045328,43.7842375,218.48,218.39,39.2070375]
[1731340045507,43.7842375,218.48,218.39,43.7857375]
[1731340046038,39.2070375,218.42,218.33,56.6993375]
[1731340046223,39.2070375,218.42,218.35,39.2070375]
[1731340046526,39.2070375,218.44,218.35,39.2070375]
[1731340046733,39.2070375,218.46,218.37,39.2070375]
[1731340047528,43.7845375,218.46,218.38,4.5791]
[1731340048237,39.2070375,218.44,218.37,50.6554375]
[1731340048416,43.7845375,218.46,218.37,39.2070375]
[1731340048610,43.7845375,218.46,218.37,55.2346375]
[1731340049230,39.2070375,218.48,218.39,39.2070375]
[1731340049742,39.2070375,218.46,218.37,55.2346375]
[1731340050226,39.2070375,218.48,218.39,39.2070375]
[1731340050644,4.5762,218.52,218.45,39.2070375]
[1731340051312,43.7832375,218.52,218.45,39.2070375]
[1731340051534,43.7832375,218.52,218.43,39.2070375]
[1731340052355,39.2070375,218.5,218.41,39.2070375]
[1731340052648,39.2070375,218.54,218.45,39.2070375]
[1731340052823,39.2070375,218.62,218.53,39.2070375]
[1731340053023,39.2070375,218.64,218.55,39.2070375]
[1731340053225,0.1,218.72,218.47,43.876884]
[1731340053226,39.2070375,218.66,218.57,39.2070375]
[1731340053548,0.1,218.63,218.49,39.2070375]
[1731340053754,39.2070375,218.55,218.47,39.2070375]
[1731340053954,39.2070375,218.56,218.47,39.2070375]
[1731340054122,39.2070375,218.54,218.46,6.2805]
[1731340054451,43.7834375,218.52,218.43,43.7849375]
[1731340054827,43.7829375,218.54,218.45,39.2070375]
[1731340055230,39.2070375,218.58,218.49,39.2070375]
[1731340055535,39.2070375,218.52,218.44,15.4885]
[1731340056242,39.2070375,218.52,218.43,39.2070375]
[1731340056243,39.2070375,218.5,218.41,39.2070375]
[1731340056450,4.5743,218.61,218.48,39.2070375]
[1731340056654,4.5743,218.61,218.51,39.2070375]
[1731340056655,39.2070375,218.6,218.51,39.2070375]
[1731340056840,28.67240015,218.63,218.54,24.09840015]
[1731340057146,24.09840015,218.61,218.52,24.09840015]
[1731340057647,24.09840015,218.59,218.5,24.09840015]
[1731340057826,24.09840015,218.57,218.48,24.09840015]
[1731340058027,16.0088,218.63,218.42,23.776884]
[1731340058332,24.09840015,218.57,218.49,24.09840015]
[1731340058531,4.5754,218.56,218.49,24.09840015]
[1731340059050,24.09840015,218.51,218.4,17.727]
[1731340059233,24.09840015,218.48,218.38,28.67750015]
[1731340059443,24.09840015,218.44,218.36,39.55140015]
[1731340059644,24.09840015,218.4,218.32,24.09840015]
[1731340059839,24.09840015,218.38,218.31,6.4852]
[1731340060224,24.09840015,218.38,218.29,15.7464]
[1731340060225,24.09840015,218.36,218.29,15.7464]
[1731340060547,0.1,218.46,218.29,15.7464]
[1731340060548,24.09840015,218.38,218.29,15.7464]
[1731340060850,24.09840015,218.43,218.35,24.09840015]
[1731340061641,24.09840015,218.46,218.39,24.09840015]
[1731340061947,24.09840015,218.46,218.37,24.09840015]
[1731340062152,24.09840015,218.51,218.42,24.09840015]
[1731340062356,4.5756,218.55,218.44,24.09840015]
[1731340062647,4.5756,218.55,218.43,20.0]
[1731340062648,28.67400015,218.55,218.48,24.09840015]
[1731340062852,43.76312644,218.55,218.46,39.18752644]
[1731340063156,4.5756,218.55,218.48,39.18752644]
[1731340063648,43.76312644,218.55,218.46,39.18752644]
[1731340064027,43.76272644,218.57,218.48,39.18752644]
[1731340064327,39.18752644,218.53,218.44,55.51232644]
[1731340064727,39.18752644,218.53,218.45,23.776884]
[1731340065140,39.18752644,218.53,218.46,39.18752644]
[1731340065446,39.18752644,218.55,218.46,39.18752644]
[1731340065645,39.18752644,218.53,218.46,39.18752644]
[1731340065840,39.18752644,218.55,218.46,43.76492644]
[1731340066044,39.18752644,218.57,218.49,23.776884]
[1731340066233,39.18752644,218.57,218.5,39.18752644]
[1731340066440,39.18752644,218.59,218.5,39.18752644]
[1731340067053,39.18752644,218.59,218.52,39.18752644]
[1731340067235,4.5741,218.62,218.55,23.776884]
[1731340067440,4.5741,218.62,218.46,16.0211]
[1731340067441,9.12085112,218.63,218.58,39.18752644]
[1731340067851,52.88237756,218.63,218.54,39.18752644]
[1731340068146,52.88237756,218.63,218.44,16.4248]
[1731340068147,39.18752644,218.55,218.44,16.3248]
[1731340068336,39.18752644,218.49,218.44,16.3248]
[1731340068536,39.18752644,218.49,218.4,45.41682644]
[1731340068537,39.18752644,218.51,218.42,39.18752644]
[1731340068733,47.99925112,218.63,218.46,39.18752644]
[1731340068941,47.99925112,218.63,218.4,22.3547]
[1731340068942,39.18752644,218.5,218.41,39.18752644]
[1731340069154,39.18752644,218.52,218.43,39.18752644]
[1731340069337,39.18752644,218.5,218.41,39.18752644]
[1731340069532,39.18752644,218.48,218.41,39.18752644]
[1731340069759,39.18752644,218.48,218.39,39.18752644]
[1731340069945,4.5772,218.47,218.39,39.18752644]
[1731340070445,39.18752644,218.46,218.37,54.97162644]
[1731340070642,39.18752644,218.48,218.39,39.18752644]
[1731340070831,39.18752644,218.5,218.41,39.18752644]
[1731340071158,39.18752644,218.54,218.45,39.18752644]
[1731340072153,39.18752644,218.52,218.43,39.18752644]
[1731340072558,39.18752644,218.48,218.39,39.18752644]
[1731340072939,16.016,218.53,218.37,54.97162644]
[1731340072940,39.18752644,218.46,218.37,54.97162644]
[1731340074040,39.18752644,218.46,218.37,59.55082644]
[1731340074249,39.18752644,218.46,218.37,15.7841]
[1731340074434,39.18752644,218.46,218.37,54.97162644]
[1731340074744,39.18752644,218.44,218.37,15.7841]
[1731340074948,39.18752644,218.42,218.34,11.4499]
[1731340075340,39.18752644,218.44,218.36,39.18752644]
[1731340075643,39.18752644,218.44,218.34,55.21742644]
[1731340075851,39.18752644,218.42,218.34,39.18752644]
[1731340076151,43.76632644,218.4,218.31,6.255]
[1731340076332,43.76632644,218.4,218.31,10.8356]
[1731340076655,43.76632644,218.4,218.32,39.18752644]
[1731340076837,4.5788,218.4,218.34,39.18752644]
[1731340077044,43.76632644,218.4,218.32,39.18752644]
[1731340077354,39.18752644,218.44,218.36,39.18752644]
[1731340077735,39.18752644,218.44,218.29,16.6929]
[1731340077736,39.18752644,218.37,218.19,4.5831]
[1731340078051,39.18752644,218.32,218.23,39.18752644]
[1731340078357,39.18752644,218.34,218.25,39.18752644]
[1731340078554,39.18752644,218.36,218.27,39.18752644]
[1731340078732,39.18752644,218.38,218.3,39.18752644]
[1731340078933,46.4622,218.47,218.23,11.4558]
[1731340078934,39.18752644,218.4,218.32,39.18752644]
[1731340079550,39.18752644,218.4,218.3,39.18752644]
[1731340079935,39.18752644,218.38,218.3,39.18752644]
[1731340080334,39.18752644,218.38,218.26,0.1]
[1731340080335,4.5793,218.37,218.29,4.581]
[1731340080541,39.18752644,218.34,218.26,39.18752644]
[1731340080949,39.18752644,218.3,218.22,39.18752644]
[1731340081336,39.18752644,218.34,218.26,39.18752644]
[1731340081539,39.18752644,218.36,218.28,39.18752644]
[1731340082062,39.18752644,218.34,218.26,39.18752644]
[1731340082354,39.18752644,218.34,218.27,4.5814]
[1731340082556,39.18752644,218.38,218.3,39.18752644]
[1731340082757,4.5783,218.42,218.33,24.14420543]
[1731340082973,24.14420543,218.37,218.29,24.14420543]
[1731340083352,24.14420543,218.41,218.31,24.14420543]
[1731340083662,24.14420543,218.39,218.29,24.14420543]
[1731340084256,24.14420543,218.39,218.32,24.14420543]
[1731340084466,28.72320543,218.39,218.32,24.14420543]
[1731340084677,28.72320543,218.39,218.3,24.14420543]
[1731340084841,24.14420543,218.41,218.32,24.14420543]